bitfinex/quotes_ETHUSD_20250223
["timestamp","ask_amount","ask_price","bid_price","bid_amount"]
[1740307875472,0.8245,2806.0,2805.3,3.5646]
[1740307875473,4.38831,2806.0,2805.4,3.56453]
[1740307875675,3.56393,2805.9,2805.3,3.5646]
[1740307875976,3.56393,2805.9,2805.3,4.360251]
[1740307876472,0.8245,2806.0,2805.3,0.795651]
[1740307876677,0.8245,2806.0,2805.7,3.56415]
[1740307876849,0.8245,2806.0,2805.4,3.56447]
[1740307877844,0.8245,2806.0,2805.5,3.56441]
[1740307878044,0.8245,2806.0,2805.6,3.56421]
[1740307878941,0.8245,2806.0,2805.7,3.56415]
[1740307880975,0.8245,2806.0,2805.2,4.10015624]
[1740307881176,5.24,2806.2,2805.6,0.7851]
[1740307881559,5.24,2806.2,2806.0,3.56377]
[1740307881759,0.818,2806.5,2805.6,0.7851]
[1740307881760,0.818,2806.5,2806.1,3.56365]
[1740307881961,0.818,2806.5,2806.3,3.56335]
[1740307882149,0.818,2806.5,2806.3,3.56332]
[1740307882350,0.818,2806.8,2806.1,0.7851]
[1740307882552,0.818,2806.8,2806.3,3.56332]
[1740307883202,4.38082,2806.8,2806.3,3.56332]
[1740307884376,0.818,2806.8,2806.3,3.56332]
[1740307884575,0.818,2806.8,2806.3,7.12664]
[1740307885170,0.818,2806.8,2806.3,3.56332]
[1740307885352,0.818,2806.8,2806.3,7.12666]
[1740307885684,0.818,2806.8,2806.3,3.56332]
[1740307886179,1.638329,2806.8,2806.1,3.56359]
[1740307886381,0.818,2806.8,2806.3,3.5634]
[1740307886686,0.818,2806.8,2806.4,3.56327]
[1740307886870,0.818,2806.8,2806.5,3.56312]
[1740307887048,0.818,2806.8,2806.3,3.5634]
[1740307887480,4.38085,2806.8,2806.3,3.5634]
[1740307887890,7.94372,2806.8,2806.2,3.5635]
[1740307888253,4.38085,2806.8,2806.2,3.5635]
[1740307889085,3.5629,2806.7,2805.9,3.5638]
[1740307889254,3.56322,2806.5,2805.9,3.5638]
[1740307889457,3.56367,2806.1,2805.7,5.39]
[1740307889679,3.56367,2806.1,2805.6,4.3757]
[1740307889878,3.56367,2806.1,2805.6,3.5642]
[1740307890287,4.36192,2805.9,2805.4,0.8115]
[1740307890490,0.798,2805.9,2805.0,4.37644]
[1740307890690,3.56452,2805.5,2804.9,3.56511]
[1740307890986,3.56452,2805.5,2805.0,3.56503]
[1740307891187,0.798,2805.6,2805.0,3.56496]
[1740307891488,4.3623,2805.6,2805.0,3.56496]
[1740307891686,0.798,2805.6,2805.0,3.56496]
[1740307892191,4.36231,2805.6,2805.0,3.56496]
[1740307892493,4.36231,2805.6,2805.0,7.12995]
[1740307892988,0.798,2805.6,2805.3,3.56467]
[1740307893208,8.80398,2805.9,2805.0,0.43383883]
[1740307893209,6.038,2805.9,2805.0,0.43383883]
[1740307893413,6.038,2805.9,2805.7,3.5641]
[1740307893618,0.261,2806.2,2805.8,3.56404]
[1740307893768,0.5501,2806.1,2805.7,3.5641]
[1740307894891,0.5501,2806.1,2805.8,3.56398]
[1740307895092,0.5501,2806.1,2805.7,3.5641]
[1740307895500,0.798,2806.2,2805.7,3.5641]
[1740307895723,0.798,2806.2,2805.8,3.56402]
[1740307896496,0.798,2806.2,2806.0,3.56378]
[1740307896697,0.798,2806.2,2805.6,0.8115]
[1740307896698,0.798,2806.5,2806.3,3.5634]
[1740307896915,4.36118,2806.5,2805.8,3.56404]
[1740307897122,4.36118,2806.5,2805.9,3.56381]
[1740307897313,0.798,2806.5,2806.0,3.56377]
[1740307897467,0.798,2806.5,2806.0,3.56372]
[1740307897808,0.798,2806.5,2806.0,3.56371]
[1740307898505,0.798,2806.5,2806.1,3.56364]
[1740307898672,0.798,2806.5,2806.3,3.5634]
[1740307898878,0.37099507,2806.6,2806.3,3.5634]
[1740307899078,0.37099507,2806.6,2806.2,3.56351]
[1740307899698,1.70818572,2806.8,2806.2,0.79386]
[1740307899699,0.18610072,2806.8,2806.2,0.79386]
[1740307899907,5.24,2807.0,2806.7,3.5629]
[1740307900303,0.798,2807.1,2806.9,3.56255]
[1740307900509,0.798,2807.1,2807.0,3.56252]
[1740307901012,0.37096642,2807.2,2806.9,7.12511]
[1740307901213,0.37096642,2807.2,2806.9,3.56255]
[1740307901379,0.37096642,2807.2,2807.0,3.56244]
[1740307901707,0.7905,2807.4,2807.1,3.56239]
[1740307901906,5.24,2807.5,2807.3,3.56214]
[1740307902106,0.7905,2807.6,2807.3,3.56214]
[1740307902312,0.7905,2807.6,2807.4,3.56195]
[1740307902496,0.7905,2807.6,2807.5,3.56188]
[1740307902702,5.24,2807.9,2807.5,3.56188]
[1740307903111,5.24,2807.9,2807.3,3.56203]
[1740307903279,4.35176,2808.0,2807.2,3.56219]
[1740307903485,4.35176,2808.0,2807.4,3.56198]
[1740307904315,4.35176,2808.0,2806.6,8.66315624]
[1740307904316,4.35254,2807.4,2806.7,4.31987]
[1740307904523,3.56248,2807.1,2806.5,3.5631]
[1740307904683,3.56234,2807.2,2806.5,3.99512]
[1740307904879,3.56234,2807.2,2806.6,3.56292]
[1740307905079,0.03355647,2807.1,2806.5,3.99512]
[1740307905386,3.59595647,2807.1,2806.5,3.99512]
[1740307905717,0.03414526,2807.0,2806.5,3.99509]
[1740307905901,0.03414526,2807.0,2806.9,3.56264]
[1740307906105,4.61258,2807.4,2806.9,3.56264]
[1740307906337,0.03414526,2807.3,2806.9,3.56264]
[1740307906506,0.03414526,2807.3,2807.0,3.56242]
[1740307907134,0.03414526,2807.3,2806.6,0.475219]
[1740307907420,0.03414526,2807.3,2807.1,3.56235]
[1740307907583,0.03414526,2807.3,2807.1,3.5623]
[1740307908785,0.03414526,2807.3,2806.9,7.12514]
[1740307908986,0.03414526,2807.3,2807.0,3.56249]
[1740307909931,0.03414526,2807.3,2807.1,3.56238]
[1740307910223,0.818,2807.6,2807.2,3.56223]
[1740307910609,0.818,2807.6,2807.1,3.56229]
[1740307910789,0.818,2807.6,2807.2,3.56226]
[1740307910992,0.818,2807.6,2807.1,7.1246]
[1740307911295,0.818,2807.6,2807.3,3.56209]
[1740307911497,0.818,2807.6,2807.0,3.56251]
[1740307911702,4.37984,2807.6,2807.0,3.56251]
[1740307912422,0.818,2807.6,2807.1,3.56232]
[1740307912609,0.818,2807.6,2807.2,3.56219]
[1740307913398,0.818,2807.6,2807.1,3.56232]
[1740307913717,4.55741063,2807.9,2807.3,3.56211]
[1740307913718,1.368,2807.8,2807.3,3.56211]
[1740307913915,0.89368706,2807.7,2807.3,3.56211]
[1740307914227,4.45538706,2807.7,2807.1,3.56232]
[1740307914429,8.01709706,2807.7,2807.1,3.56232]
[1740307914720,3.56176,2807.6,2807.1,3.56232]
[1740307914893,3.56188,2807.5,2806.9,3.56257]
[1740307915094,3.56188,2807.5,2807.0,3.56249]
[1740307916025,4.45538706,2807.7,2807.0,3.56249]
[1740307916207,8.01709706,2807.7,2807.1,3.56231]
[1740307916597,0.89368706,2807.7,2806.8,0.7747]
[1740307916796,0.818,2807.8,2807.5,3.56187]
[1740307917722,0.818,2807.8,2807.4,3.562]
[1740307918292,0.818,2807.8,2807.3,4.33676]
[1740307918695,3.56176,2807.6,2807.0,4.33719]
[1740307918933,3.56193,2807.5,2807.0,3.56249]
[1740307919428,4.11172,2807.7,2807.2,3.56225]
[1740307919593,5.01652344,2807.7,2807.2,3.56225]
[1740307919795,3.56177,2807.6,2807.0,3.56243]
[1740307920208,3.56177,2807.6,2807.0,7.12488]
[1740307920408,3.56177,2807.6,2807.1,3.56238]
[1740307921225,1.45480344,2807.7,2806.8,0.7747]
[1740307921406,0.55,2807.7,2806.8,0.7747]
[1740307921609,4.7504238,2807.8,2806.8,0.7747]
[1740307921802,1.1889138,2807.8,2807.3,3.56202]
[1740307922323,1.1889138,2807.8,2807.4,3.56194]
[1740307922995,4.7504938,2807.8,2807.1,4.37141]
[1740307924323,4.7504938,2807.8,2807.3,3.56213]
[1740307924697,4.7504938,2807.8,2807.1,4.37137]
[1740307924899,3.56165,2807.7,2807.2,3.56224]
[1740307925210,3.56205,2807.4,2806.9,4.37167]
[1740307925423,0.7535,2807.1,2806.6,8.953]
[1740307925725,0.7535,2807.1,2806.6,3.563]
[1740307925901,4.31591,2807.1,2806.6,3.563]
[1740307926103,4.31591,2807.1,2806.5,3.9951]
[1740307926329,4.31596,2807.1,2806.6,0.47653]
[1740307926491,4.31596,2807.1,2806.5,3.56315]
[1740307926698,0.7535,2807.1,2806.7,3.56288]
[1740307926994,4.31592,2807.1,2806.5,3.56308]
[1740307927629,0.24649008,2807.0,2806.5,3.56306]
[1740307927831,0.24649008,2807.0,2806.5,3.919366]
[1740307928325,0.24649008,2807.0,2806.6,3.56293]
[1740307928714,0.7535,2807.1,2806.5,3.919366]
[1740307928915,4.3159,2807.1,2806.6,3.563]
[1740307929318,0.7535,2807.1,2806.5,3.919416]
[1740307929539,0.7535,2807.1,2806.6,3.56299]
[1740307930621,4.3159,2807.1,2806.6,3.56299]
[1740307930949,0.7535,2807.1,2806.5,3.56311]
[1740307931151,0.7535,2807.1,2806.7,3.5629]
[1740307932337,0.7535,2807.1,2806.6,3.56295]
[1740307932538,4.31591,2807.1,2806.5,3.56304]
[1740307932742,0.7535,2807.1,2806.5,3.56304]
[1740307934560,3.56252,2807.0,2806.5,3.56304]
[1740307935739,0.24684325,2806.9,2806.5,3.56304]
[1740307936146,0.24684325,2806.9,2806.2,0.7702]
[1740307936147,0.7535,2806.8,2806.2,0.7702]
[1740307936556,0.7535,2806.8,2806.0,5.39]
[1740307936759,3.5639,2806.0,2805.4,0.7702]
[1740307936961,4.02665624,2806.3,2805.4,0.7702]
[1740307936962,11.15367624,2806.3,2805.6,3.56421]
[1740307937144,3.56356,2806.2,2805.6,3.56421]
[1740307937361,0.7535,2806.0,2805.6,3.56421]
[1740307937671,0.7535,2806.0,2805.4,3.56448]
[1740307937875,0.7535,2806.0,2805.2,0.7702]
[1740307938060,3.56449,2805.5,2804.9,4.33534]
[1740307938570,0.7535,2805.6,2805.1,3.56482]
[1740307938759,0.7535,2805.6,2805.2,3.56478]
[1740307939870,0.7535,2805.6,2804.9,0.7702]
[1740307939871,4.3178,2805.6,2805.0,3.56497]
[1740307940773,0.7535,2805.6,2805.1,3.56492]
[1740307941548,4.3178,2805.6,2805.1,3.56492]
[1740307942177,0.7535,2805.6,2805.1,3.56492]
[1740307942372,0.7535,2805.6,2805.1,7.12969]
[1740307942673,0.7535,2805.6,2805.1,3.56484]
[1740307943274,0.7535,2805.6,2804.9,3.56512]
[1740307943495,4.749647,2805.6,2805.0,3.56504]
[1740307943800,4.749567,2805.6,2805.1,3.56491]
[1740307944473,0.55,2805.5,2804.9,3.56508]
[1740307944686,0.55,2805.5,2805.1,3.56491]
[1740307945095,5.0009097,2805.5,2804.9,3.56508]
[1740307945288,3.5647,2805.3,2804.7,7.13072]
[1740307945488,4.36895,2805.4,2804.7,3.56535]
[1740307945693,4.36895,2805.4,2804.8,3.56524]
[1740307947517,7.93358,2805.4,2804.8,3.56524]
[1740307947873,3.5648,2805.2,2804.6,3.56544]
[1740307948304,0.55,2805.2,2804.4,3.5657]
[1740307948599,0.8034,2804.7,2804.2,3.56599]
[1740307948991,0.8034,2804.7,2804.3,3.56586]
[1740307949306,0.8034,2804.7,2804.2,3.56599]
[1740307949502,0.8034,2804.7,2804.4,3.56571]
[1740307949722,0.8034,2804.7,2804.6,3.56557]
[1740307950002,0.8034,2804.7,2804.4,7.13144]
[1740307950500,0.8034,2804.7,2804.5,3.56569]
[1740307950689,0.8034,2804.7,2804.4,3.56571]
[1740307951052,0.8034,2804.9,2804.5,3.56561]
[1740307951201,0.8034,2804.9,2804.6,3.56556]
[1740307951507,0.8034,2804.9,2804.5,3.56566]
[1740307951803,4.36861,2804.9,2804.3,3.56591]
[1740307952376,4.36861,2804.9,2804.2,3.56601]
[1740307952574,4.36861,2804.9,2804.4,3.56579]
[1740307953808,0.8034,2804.9,2804.5,3.56569]
[1740307954406,0.8034,2804.9,2804.2,1.166311]
[1740307954708,0.8034,2804.9,2804.8,3.56531]
[1740307955308,6.0434,2805.1,2804.8,3.56531]
[1740307956525,6.0434,2805.1,2804.9,3.56512]
[1740307956707,5.24,2805.1,2805.0,3.56506]
[1740307956911,0.8034,2805.6,2805.0,0.8191]
[1740307957077,0.8034,2805.6,2805.4,3.56444]
[1740307957610,5.61160477,2805.8,2805.4,3.56444]
[1740307957775,10.92256525,2805.8,2805.2,3.56473]
[1740307957975,3.56418,2805.7,2805.0,4.38406]
[1740307958220,3.56418,2805.7,2805.2,3.5648]
[1740307958808,3.56418,2805.7,2805.0,4.38406]
[1740307958996,3.56418,2805.7,2805.2,3.5648]
[1740307959197,4.87983145,2805.7,2805.2,3.5648]
[1740307960894,4.87983145,2805.7,2805.0,4.38406]
[1740307961094,3.56418,2805.7,2805.1,3.56486]
[1740307962358,7.88113,2805.5,2804.9,3.56518]
[1740307962515,4.11459,2805.4,2804.8,3.56522]
[1740307962715,0.7522,2805.5,2805.1,3.56491]
[1740307962917,4.74827,2805.5,2804.8,3.56524]
[1740307963115,0.55,2805.4,2804.8,3.56524]
[1740307963332,3.56477,2805.3,2804.8,3.56524]
[1740307964214,7.12956,2805.3,2804.6,7.95395]
[1740307964415,3.56477,2805.3,2804.7,3.56539]
[1740307965231,0.8308,2805.2,2804.6,4.38846]
[1740307965467,4.94585,2805.1,2804.4,5.39]
[1740307965771,6.0708,2805.1,2804.2,4.166311]
[1740307965931,3.56506,2805.0,2804.5,3.56559]
[1740307966358,3.56531,2804.8,2804.3,3.56588]
[1740307966563,6.0708,2805.1,2804.7,3.56542]
[1740307966713,6.0708,2805.1,2804.9,3.56514]
[1740307966913,0.63938287,2805.0,2804.7,3.56533]
[1740307967324,0.63938287,2805.0,2804.5,3.56558]
[1740307967526,0.63938287,2805.0,2804.7,3.56536]
[1740307967754,0.63938287,2805.0,2804.9,3.56518]
[1740307968323,5.24,2805.1,2804.9,3.56518]
[1740307968525,5.24,2805.1,2805.0,3.56506]
[1740307968727,0.1861743,2805.5,2805.0,0.793534]
[1740307969040,0.1861743,2805.5,2804.8,0.8051]
[1740307969041,0.7514,2805.6,2805.4,3.56455]
[1740307969413,0.37160477,2805.8,2805.7,3.56417]
[1740307969612,8.80338,2806.4,2805.8,3.56404]
[1740307969613,0.7514,2806.3,2805.8,3.56404]
[1740307969859,0.3711722,2806.2,2805.8,3.56404]
[1740307970062,0.3711722,2806.2,2805.8,3.56392]
[1740307970261,0.3711722,2806.2,2805.9,3.5639]
[1740307970496,0.7514,2806.3,2806.0,3.56378]
[1740307971188,0.7514,2806.3,2805.9,3.56379]
[1740307971757,0.7514,2806.3,2806.0,3.56376]
[1740307973893,4.31481,2806.3,2805.8,3.56403]
[1740307979087,0.7514,2806.3,2805.8,0.712826]
[1740307979288,0.7514,2806.6,2806.5,3.56314]
[1740307979463,5.9914,2807.1,2806.7,3.56277]
[1740307979993,5.9914,2807.1,2806.8,3.56274]
[1740307980291,0.37119877,2807.3,2807.0,3.56239]
[1740307980583,8.13185865,2807.3,2806.7,3.56282]
[1740307980993,4.56961865,2807.3,2806.7,3.56282]
[1740307981166,0.7799,2807.2,2806.4,0.8051]
[1740307981368,6.0199,2807.2,2806.4,0.8051]
[1740307981590,6.0199,2807.2,2806.8,3.5627]
[1740307982393,6.0199,2807.2,2806.8,3.56268]
[1740307983063,6.0199,2807.2,2806.8,7.12537]
[1740307983270,6.0199,2807.2,2806.8,3.56268]
[1740307985359,6.0199,2807.2,2806.9,3.56258]
[1740307985567,6.0199,2807.2,2807.0,3.56251]
[1740307985793,0.7799,2807.2,2807.0,3.56251]
[1740307985989,0.37119877,2807.3,2807.0,3.5624]
[1740307986195,0.7665,2807.4,2807.2,3.56226]
[1740307986389,0.7665,2807.4,2807.2,3.56218]
[1740307986793,1.13768503,2807.7,2807.2,0.712463]
[1740307986999,3.56177,2807.6,2807.1,3.56232]
[1740307987295,4.69940503,2807.7,2807.1,3.56232]
[1740307988079,4.69940503,2807.7,2807.1,3.56231]
[1740307988674,4.69940503,2807.7,2806.9,0.8021]
[1740307988675,1.13768503,2807.7,2807.2,3.56216]
[1740307988886,1.13768503,2807.7,2807.4,3.56197]
[1740307989204,1.13768503,2807.7,2807.4,3.56191]
[1740307989399,6.19236573,2808.0,2807.6,3.56176]
[1740307989899,7.31252706,2808.0,2807.2,3.56217]
[1740307990102,3.56164,2807.7,2807.2,3.56217]
[1740307990461,3.56164,2807.7,2807.0,3.5625]
[1740307990665,3.56164,2807.7,2807.1,3.56237]
[1740307993404,0.7665,2807.6,2807.1,3.56237]
[1740307993618,3.56202,2807.4,2806.9,0.8021]
[1740307993794,4.32832,2807.6,2807.0,0.436476]
[1740307993994,4.32832,2807.6,2807.1,3.56239]
[1740307994572,4.32832,2807.6,2807.0,3.56244]
[1740307996409,7.89016,2807.6,2807.0,3.56244]
[1740307996586,4.32832,2807.6,2807.0,3.56244]
[1740307996790,4.32832,2807.6,2807.0,7.12489]
[1740307997405,0.7665,2807.6,2807.0,0.792699]
[1740307997605,0.7665,2807.6,2807.2,3.56218]
[1740307998177,0.7665,2807.6,2807.3,3.56206]
[1740307998807,0.7665,2807.6,2807.1,3.56232]
[1740307999579,4.32834,2807.6,2807.0,7.12488]
[1740307999779,4.32834,2807.6,2807.0,3.56244]
[1740308000010,4.32834,2807.6,2807.0,3.998894]
[1740308000615,4.32834,2807.6,2807.1,3.56237]
[1740308000827,7.89019,2807.6,2807.1,3.56237]
[1740308001036,4.32834,2807.6,2807.0,0.436454]
[1740308001217,3.562,2807.5,2807.0,0.436454]
[1740308001740,0.7665,2807.6,2807.1,3.56238]
[1740308002313,4.32834,2807.6,2807.0,7.561324]
[1740308002619,4.32834,2807.6,2807.0,3.998884]
[1740308003198,4.32834,2807.6,2806.9,0.8021]
[1740308003199,0.7665,2807.6,2807.3,3.56203]
[1740308003383,0.7665,2807.6,2807.4,3.562]
[1740308003583,0.7781,2807.8,2807.4,3.562]
[1740308004006,0.7781,2807.8,2807.5,3.56183]
[1740308004920,0.7781,2807.8,2807.2,3.56218]
[1740308005122,0.7781,2807.8,2807.3,0.40422784]
[1740308005283,0.7781,2807.8,2807.4,3.56198]
[1740308009141,0.7781,2807.8,2807.4,3.51198]
[1740308011813,0.7781,2807.8,2807.5,3.56187]
[1740308012014,0.7781,2807.8,2807.5,3.56188]
[1740308012326,0.7781,2807.8,2807.5,0.785676]
[1740308012507,6.0147,2808.0,2807.6,3.56168]
[1740308012700,0.7747,2808.0,2807.6,3.56168]
[1740308013038,0.7747,2808.0,2807.6,3.56173]
[1740308025961,0.7747,2808.0,2807.6,3.56168]
[1740308026261,4.35989,2807.9,2807.2,3.56219]
[1740308026562,3.56165,2807.7,2807.2,3.56219]
[1740308027158,0.7985,2807.5,2807.0,5.39]
[1740308027357,3.56202,2807.4,2806.9,0.7928]
[1740308027653,3.56202,2807.4,2806.8,3.56266]
[1740308027835,3.56202,2807.4,2806.9,3.56263]
[1740308028030,3.56202,2807.4,2806.7,0.7928]
[1740308028234,3.56202,2807.4,2806.7,1.17866713]
[1740308028443,3.56202,2807.4,2806.9,3.56262]
[1740308028831,0.7985,2807.5,2806.7,1.17866713]
[1740308029049,0.7985,2807.5,2807.3,3.5621]
[1740308029251,0.7985,2807.5,2807.1,7.12466]
[1740308029626,0.7985,2807.5,2807.3,3.56213]
[1740308030361,0.7985,2807.8,2807.4,3.56201]
[1740308030730,0.7985,2807.8,2807.5,3.56188]
[1740308030945,6.0385,2808.0,2807.7,3.56163]
[1740308031261,0.7985,2808.0,2807.7,3.56163]
[1740308032861,1.35558902,2808.2,2807.7,3.56163]
[1740308033266,1.35558902,2808.2,2807.8,3.56147]
[1740308033837,1.35558902,2808.2,2807.9,3.56136]
[1740308035960,1.16964943,2808.2,2807.6,0.7928]
[1740308036161,0.37114943,2808.2,2808.1,3.56112]
[1740308036577,0.37114943,2808.2,2807.9,3.56133]
[1740308036885,0.37114943,2808.2,2807.9,3.5613]
[1740308037252,0.37114943,2808.2,2807.7,7.12309]
[1740308037565,0.37114943,2808.2,2807.8,3.56149]
[1740308038771,3.93214943,2808.2,2807.7,3.56154]
[1740308039332,0.7985,2808.1,2807.7,3.56154]
[1740308039543,4.35967,2808.1,2807.5,7.12363]
[1740308039735,4.35967,2808.1,2807.5,3.56179]
[1740308039958,4.35967,2808.1,2807.6,3.56175]
[1740308041049,4.35967,2808.1,2807.5,3.56179]
[1740308041250,4.35967,2808.1,2807.5,7.559049]
[1740308041575,0.7985,2808.1,2807.5,3.997249]
[1740308041737,0.7985,2808.1,2807.7,3.56156]
[1740308041937,0.7985,2808.1,2807.8,3.56149]
[1740308042369,0.7551,2808.3,2808.2,3.56099]
[1740308042672,0.94103213,2808.5,2808.1,3.56112]
[1740308043471,0.94103213,2808.5,2808.1,4.273296]
[1740308043772,0.94103213,2808.5,2808.1,3.56105]
[1740308044075,0.94103213,2808.5,2807.6,0.7673]
[1740308044076,4.50175213,2808.5,2807.6,0.7673]
[1740308044238,4.50174213,2808.5,2807.9,3.56136]
[1740308044438,3.56081,2808.4,2807.9,3.56136]
[1740308044641,0.7551,2808.1,2807.6,0.7673]
[1740308044964,0.7551,2808.1,2807.7,4.0380909]
[1740308045282,0.03360402,2808.0,2807.9,3.56133]
[1740308045777,0.7546,2808.3,2807.9,3.56133]
[1740308045981,0.03460785,2808.0,2807.8,3.56148]
[1740308046180,0.7546,2808.3,2807.8,3.56148]
[1740308046590,0.03460785,2808.2,2807.8,3.56148]
[1740308047090,0.03460785,2808.1,2807.9,3.56134]
[1740308047446,0.7546,2808.3,2808.0,3.56122]
[1740308047647,0.03460785,2808.2,2808.0,3.56122]
[1740308047989,0.7546,2808.3,2808.0,3.56122]
[1740308048482,0.03460785,2808.2,2808.0,3.56122]
[1740308048720,0.7546,2808.3,2808.0,3.56122]
[1740308048886,0.03460785,2808.1,2808.0,3.56122]
[1740308049106,0.7546,2808.3,2808.0,3.56122]
[1740308049251,0.03895637,2808.1,2808.0,3.56122]
[1740308049450,0.7546,2808.3,2808.0,3.56122]
[1740308050998,0.7546,2808.3,2808.0,3.56117]
[1740308051292,4.52456213,2808.5,2808.0,3.56117]
[1740308052198,0.96393213,2808.5,2808.0,3.56116]
[1740308052397,0.96393213,2808.5,2808.0,7.12232]
[1740308052600,0.96393213,2808.5,2808.0,4.35706071]
[1740308052803,0.96393213,2808.5,2808.1,3.56105]
[1740308053006,0.96393213,2808.5,2808.2,3.56096]
[1740308053915,0.96393213,2808.5,2808.0,8.71189071]
[1740308054203,0.96393213,2808.5,2808.1,3.561]
[1740308054515,0.18593213,2808.5,2808.2,3.56092]
[1740308054808,0.778,2808.7,2808.4,3.56074]
[1740308055106,0.783,2808.9,2808.5,7.12108]
[1740308055400,0.783,2808.9,2808.5,3.56053]
[1740308055959,4.3432,2808.9,2808.4,4.35443]
[1740308056400,0.783,2808.9,2808.4,4.35443]
[1740308057396,0.783,2808.9,2808.4,4.789813]
[1740308058295,4.34316,2808.9,2808.4,4.789813]
[1740308058599,0.783,2808.9,2808.4,4.789813]
[1740308058797,0.783,2808.9,2808.4,4.789793]
[1740308059201,0.783,2808.9,2808.7,3.56025]
[1740308059499,0.783,2808.9,2808.7,0.356025]
[1740308060765,4.34313,2808.9,2808.7,0.356025]
[1740308061101,4.34313,2808.9,2808.4,1.229143]
[1740308061892,4.34313,2808.9,2808.4,4.789863]
[1740308062119,4.34313,2808.9,2808.4,1.229143]
[1740308062270,3.56026,2808.8,2808.4,1.229143]
[1740308062462,4.34314,2808.9,2808.4,1.229143]
[1740308063066,7.90333,2808.9,2808.4,1.229143]
[1740308063372,0.783,2808.9,2808.6,3.56039]
[1740308063701,0.783,2808.9,2808.4,4.789773]
[1740308064131,4.34319,2808.9,2808.4,1.229143]
[1740308064491,3.56026,2808.8,2808.4,1.229143]
[1740308064687,4.34319,2808.9,2808.4,1.229143]
[1740308064688,4.34319,2808.9,2808.4,0.7937]
[1740308064889,0.783,2808.9,2808.4,0.7937]
[1740308065113,4.34313,2808.9,2808.4,0.7937]
[1740308066392,3.56038,2808.7,2808.2,0.7554]
[1740308066591,3.56038,2808.7,2808.2,4.31637]
[1740308066792,4.34313,2808.9,2808.4,3.56073]
[1740308067004,0.783,2808.9,2808.4,3.56073]
[1740308067406,4.34311,2808.9,2808.4,3.56073]
[1740308068122,0.783,2808.9,2808.5,3.56055]
[1740308068319,0.005,2808.9,2808.2,2.082141]
[1740308068503,0.005,2808.9,2808.8,3.56023]
[1740308069538,0.005,2808.9,2808.7,0.8132]
[1740308069934,0.005,2808.9,2808.7,4.37352]
[1740308070728,0.005,2808.9,2808.8,3.56023]
[1740308072796,0.005,2808.9,2808.8,4.37343]
[1740308072992,0.005,2808.9,2808.8,5.166802]
[1740308073928,0.005,2808.9,2808.8,8.166802]
[1740308076128,0.005,2808.9,2808.8,5.166802]
[1740308076896,0.005,2808.9,2808.6,5.39]
[1740308077127,3.56518,2808.9,2808.6,5.39]
[1740308077322,0.005,2808.9,2808.6,5.39]
[1740308077935,0.005,2808.9,2808.6,8.95048]
[1740308078136,0.005,2808.9,2808.6,5.39]
[1740308078302,0.005,2808.9,2808.6,8.95046]
[1740308078832,0.005,2808.9,2808.6,3.56046]
[1740308079243,0.005,2808.9,2808.6,3.997776]
[1740308080242,0.005,2808.9,2808.4,7.93452]
[1740308080609,0.005,2808.9,2808.6,3.56037]
[1740308081141,0.005,2808.9,2808.6,7.12078]
[1740308081439,0.005,2808.9,2808.6,3.56037]
[1740308081611,0.005,2808.9,2808.4,4.37387]
[1740308081811,0.005,2808.9,2808.4,0.45410182]
[1740308081812,0.8194,2808.8,2808.4,0.45410182]
[1740308082445,3.5605,2808.6,2808.2,0.7962]
[1740308082614,3.5605,2808.6,2808.1,3.56111]
[1740308083227,4.37973,2808.8,2808.3,3.56079]
[1740308083428,0.8194,2808.8,2808.3,7.12159]
[1740308083643,0.8194,2808.8,2808.4,3.56073]
[1740308083939,0.005,2808.9,2808.6,3.56048]
[1740308084243,0.005,2808.9,2808.5,3.56052]
[1740308084738,0.005,2808.9,2808.4,1.508352]
[1740308084943,0.005,2808.9,2808.4,4.35684]
[1740308085639,3.56519,2808.9,2808.3,3.56082]
[1740308085831,0.005,2808.9,2808.3,3.56082]
[1740308086025,0.005,2808.9,2808.4,3.56071]
[1740308087459,0.005,2808.9,2808.5,3.56053]
[1740308087643,0.005,2808.9,2808.6,3.56047]
[1740308087954,0.005,2808.9,2808.8,3.56023]
[1740308088157,0.005,2808.9,2808.7,4.39306]
[1740308088342,0.005,2808.9,2808.7,3.56036]
[1740308089346,0.005,2808.9,2808.8,3.56023]
[1740308089550,0.005,2808.9,2808.8,4.272289]
[1740308089951,0.005,2808.9,2808.8,0.712059]
[1740308091766,0.005,2808.9,2808.8,4.272289]
[1740308092059,0.005,2808.9,2808.5,7.95374]
[1740308092257,0.005,2808.9,2808.6,3.56047]
[1740308092449,0.005,2808.9,2808.6,3.56049]
[1740308097576,0.005,2808.9,2808.7,3.56036]
[1740308098772,0.005,2808.9,2808.8,3.56023]
[1740308099068,0.005,2808.9,2808.8,4.272289]
[1740308100483,0.005,2808.9,2808.8,5.034589]
[1740308100654,0.005,2808.9,2808.8,8.034589]
[1740308100848,1e-05,2808.9,2808.8,8.034589]
[1740308103901,1e-05,2808.9,2808.8,4.474359]
[1740308104100,1e-05,2808.9,2808.8,4.272289]
[1740308104305,1e-05,2808.9,2808.8,3.56023]
[1740308105746,1e-05,2808.9,2808.5,7.3228]
[1740308106129,3.56012,2808.9,2808.4,5.39]
[1740308106642,3.56012,2808.9,2808.4,8.95067]
[1740308106804,1e-05,2808.9,2808.5,3.5605]
[1740308107002,1e-05,2808.9,2808.7,3.56036]